[Event "Titled Tuesday Blitz August 15 Late 2023"]
[White "Michalczak, Thomas"]
[Black "Shapiro, Daniel"]
[WhiteFideId "4622634"]
[BlackFideId "2001780"]
[WhiteElo "2474"]
[BlackElo "2299"]
[Result "1-0"]
[Round "3"]
[TimeControl "180+1"]
[Date "2023.08.15"]
[WhiteClock "0:01:10"]
[BlackClock "0:00:00"]
[Board "148"]

1. e4 {[%clk 0:03:00]}  e5 {[%clk 0:02:59]} 2. Nf3 {[%clk 0:03:00]}  Nc6 {[%clk 0:03:00]} 3. Bb5 {[%clk 0:02:59]}  a6 {[%clk 0:02:59]} 4. Ba4 {[%clk 0:03:00]}  Nf6 {[%clk 0:02:59]} 5. O-O {[%clk 0:03:00]}  Be7 {[%clk 0:02:59]} 6. Re1 {[%clk 0:03:00]}  b5 {[%clk 0:02:59]} 7. Bb3 {[%clk 0:03:00]}  d6 {[%clk 0:02:59]} 8. c3 {[%clk 0:03:00]}  O-O {[%clk 0:02:59]} 9. h3 {[%clk 0:03:01]}  Na5 {[%clk 0:02:58]} 10. Bc2 {[%clk 0:03:01]}  c5 {[%clk 0:02:59]} 11. d4 {[%clk 0:03:01]}  Nd7 {[%clk 0:03:00]} 12. d5 {[%clk 0:03:00]}  Nb6 {[%clk 0:02:58]} 13. b3 {[%clk 0:02:59]}  f5 {[%clk 0:02:57]} 14. exf5 {[%clk 0:02:59]}  Bb7 {[%clk 0:02:18]} 15. Be4 {[%clk 0:02:58]}  Qe8 {[%clk 0:02:18]} 16. g4 {[%clk 0:02:55]}  Qf7 {[%clk 0:02:15]} 17. Bg5 {[%clk 0:02:46]}  Bf6 {[%clk 0:01:35]} 18. Bxf6 {[%clk 0:02:39]}  gxf6 {[%clk 0:01:35]} 19. Qd2 {[%clk 0:02:26]}  Bxd5 {[%clk 0:01:27]} 20. c4 {[%clk 0:02:11]}  Bxe4 {[%clk 0:01:17]} 21. Rxe4 {[%clk 0:02:10]}  d5 {[%clk 0:01:11]} 22. cxd5 {[%clk 0:02:06]}  Qxd5 {[%clk 0:01:11]} 23. Nc3 {[%clk 0:01:58]}  Qxd2 {[%clk 0:01:00]} 24. Nxd2 {[%clk 0:01:59]}  Rad8 {[%clk 0:00:59]} 25. Nf1 {[%clk 0:01:50]}  Rd3 {[%clk 0:00:54]} 26. Re3 {[%clk 0:01:47]}  Rfd8 {[%clk 0:00:50]} 27. Rc1 {[%clk 0:01:43]}  c4 {[%clk 0:00:45]} 28. Ne4 {[%clk 0:01:35]}  Kf7 {[%clk 0:00:34]} 29. Nc5 {[%clk 0:01:26]}  R8d5 {[%clk 0:00:21]} 30. Nxd3 {[%clk 0:01:24]}  cxd3 {[%clk 0:00:18]} 31. Rc7+ {[%clk 0:01:18]}  Ke8 {[%clk 0:00:09]} 32. Nd2 {[%clk 0:01:14]}  Rd6 {[%clk 0:00:00]} 33. Rc3 {[%clk 0:01:10]} 1-0


[Site "https://www.chess.com"]

[Event "Titled Tuesday Blitz August 15 Late 2023"]
[White "Gertler, David"]
[Black "Bazilius, Augustinas"]
[WhiteFideId "2017377"]
[BlackFideId "12832251"]
[WhiteElo "2299"]
[BlackElo "2471"]
[Result "1-0"]
[Round "3"]
[TimeControl "180+1"]
[Date "2023.08.15"]
[WhiteClock "0:00:21"]
[BlackClock "0:00:32"]
[Board "149"]

1. e4 {[%clk 0:03:00]}  c5 {[%clk 0:02:59]} 2. c3 {[%clk 0:03:01]}  Nf6 {[%clk 0:02:54]} 3. e5 {[%clk 0:03:01]}  Nd5 {[%clk 0:02:55]} 4. d4 {[%clk 0:03:01]}  cxd4 {[%clk 0:02:54]} 5. Bc4 {[%clk 0:03:02]}  Nb6 {[%clk 0:02:54]} 6. Bb3 {[%clk 0:03:02]}  Nc6 {[%clk 0:02:48]} 7. cxd4 {[%clk 0:03:02]}  d6 {[%clk 0:02:49]} 8. e6 {[%clk 0:03:02]}  fxe6 {[%clk 0:02:40]} 9. Nf3 {[%clk 0:03:00]}  g6 {[%clk 0:02:38]} 10. h4 {[%clk 0:03:01]}  Bg7 {[%clk 0:02:27]} 11. h5 {[%clk 0:03:01]}  Bf6 {[%clk 0:02:26]} 12. hxg6 {[%clk 0:02:50]}  hxg6 {[%clk 0:02:27]} 13. Rxh8+ {[%clk 0:02:50]}  Bxh8 {[%clk 0:02:27]} 14. Qd3 {[%clk 0:02:50]}  Kd7 {[%clk 0:01:41]} 15. Nc3 {[%clk 0:02:46]}  Qg8 {[%clk 0:01:38]} 16. Be3 {[%clk 0:02:07]}  Nd5 {[%clk 0:01:33]} 17. O-O-O {[%clk 0:02:07]}  Nxc3 {[%clk 0:01:29]} 18. bxc3 {[%clk 0:02:07]}  b6 {[%clk 0:01:24]} 19. Ba4 {[%clk 0:01:51]}  Bb7 {[%clk 0:01:22]} 20. c4 {[%clk 0:01:51]}  Kc7 {[%clk 0:01:20]} 21. Kb1 {[%clk 0:01:39]}  Rc8 {[%clk 0:01:14]} 22. Rc1 {[%clk 0:01:37]}  Kb8 {[%clk 0:01:13]} 23. Qb3 {[%clk 0:01:06]}  Na5 {[%clk 0:01:08]} 24. Qb4 {[%clk 0:01:02]}  Be4+ {[%clk 0:01:08]} 25. Kb2 {[%clk 0:00:58]}  e5 {[%clk 0:01:06]} 26. d5 {[%clk 0:00:51]}  Bxf3 {[%clk 0:01:06]} 27. gxf3 {[%clk 0:00:51]}  e4+ {[%clk 0:01:05]} 28. Ka3 {[%clk 0:00:51]}  Qg7 {[%clk 0:00:58]} 29. Bxb6 {[%clk 0:00:36]}  axb6 {[%clk 0:00:56]} 30. Qxb6+ {[%clk 0:00:36]}  Nb7 {[%clk 0:00:57]} 31. Bc6 {[%clk 0:00:32]}  Rc7 {[%clk 0:00:57]} 32. Rb1 {[%clk 0:00:29]}  Qc3+ {[%clk 0:00:53]} 33. Rb3 {[%clk 0:00:29]}  Bd4 {[%clk 0:00:43]} 34. Qb5 {[%clk 0:00:23]}  Qc1+ {[%clk 0:00:39]} 35. Ka4 {[%clk 0:00:23]}  Bxf2 {[%clk 0:00:33]} 36. Bxb7 {[%clk 0:00:21]}  Rxb7 {[%clk 0:00:32]} 37. Qxb7# {[%clk 0:00:21]} 1-0


[Site "https://www.chess.com"]

[Event "Titled Tuesday Blitz August 15 Late 2023"]
[White "Daianu, Cristian-Clement"]
[Black "Mortazavi, Ali"]
[WhiteFideId "1208926"]
[BlackFideId "401323"]
[WhiteElo "2293"]
[BlackElo "2462"]
[Result "1-0"]
[Round "3"]
[TimeControl "180+1"]
[Date "2023.08.15"]
[WhiteClock "0:01:16"]
[BlackClock "0:00:10"]
[Board "151"]

1. e4 {[%clk 0:03:00]}  c6 {[%clk 0:03:00]} 2. d4 {[%clk 0:02:59]}  d5 {[%clk 0:03:00]} 3. e5 {[%clk 0:02:58]}  Bf5 {[%clk 0:03:01]} 4. Nf3 {[%clk 0:02:58]}  e6 {[%clk 0:03:01]} 5. Be2 {[%clk 0:02:59]}  Ne7 {[%clk 0:03:02]} 6. Be3 {[%clk 0:02:59]}  Ng6 {[%clk 0:03:02]} 7. O-O {[%clk 0:02:59]}  Nd7 {[%clk 0:03:02]} 8. Nbd2 {[%clk 0:03:00]}  f6 {[%clk 0:03:02]} 9. c4 {[%clk 0:03:00]}  fxe5 {[%clk 0:02:55]} 10. dxe5 {[%clk 0:03:01]}  Ngxe5 {[%clk 0:02:48]} 11. Nd4 {[%clk 0:02:58]}  Qf6 {[%clk 0:02:38]} 12. cxd5 {[%clk 0:02:49]}  exd5 {[%clk 0:02:38]} 13. Re1 {[%clk 0:02:48]}  Bd6 {[%clk 0:02:29]} 14. Nxf5 {[%clk 0:02:25]}  Qxf5 {[%clk 0:02:29]} 15. Nf3 {[%clk 0:02:25]}  O-O {[%clk 0:02:24]} 16. Qb3 {[%clk 0:02:23]}  Nc5 {[%clk 0:01:54]} 17. Bxc5 {[%clk 0:02:05]}  Bxc5 {[%clk 0:01:55]} 18. Qxb7 {[%clk 0:02:05]}  Rab8 {[%clk 0:01:45]} 19. Qc7 {[%clk 0:01:59]}  Ng4 {[%clk 0:01:35]} 20. Rf1 {[%clk 0:01:58]}  Rxb2 {[%clk 0:01:29]} 21. Qxc6 {[%clk 0:01:58]}  Bxf2+ {[%clk 0:01:14]} 22. Rxf2 {[%clk 0:01:58]}  Nxf2 {[%clk 0:01:15]} 23. Kxf2 {[%clk 0:01:58]}  Re8 {[%clk 0:01:11]} 24. Re1 {[%clk 0:01:58]}  Qe4 {[%clk 0:01:00]} 25. Qa6 {[%clk 0:01:52]}  h6 {[%clk 0:00:37]} 26. Kf1 {[%clk 0:01:51]}  Qe3 {[%clk 0:00:34]} 27. Qd3 {[%clk 0:01:40]}  Qxd3 {[%clk 0:00:34]} 28. Bxd3 {[%clk 0:01:40]}  Rxe1+ {[%clk 0:00:35]} 29. Nxe1 {[%clk 0:01:38]}  Rxa2 {[%clk 0:00:36]} 30. Nc2 {[%clk 0:01:32]}  Kf7 {[%clk 0:00:34]} 31. Ke2 {[%clk 0:01:33]}  Kf6 {[%clk 0:00:35]} 32. Kd2 {[%clk 0:01:34]}  Ke5 {[%clk 0:00:35]} 33. Kc3 {[%clk 0:01:33]}  Ra4 {[%clk 0:00:26]} 34. h3 {[%clk 0:01:31]}  Rf4 {[%clk 0:00:21]} 35. Ne1 {[%clk 0:01:23]}  Rf2 {[%clk 0:00:17]} 36. g4 {[%clk 0:01:20]}  d4+ {[%clk 0:00:16]} 37. Kc4 {[%clk 0:01:18]}  g5 {[%clk 0:00:15]} 38. Bf5 {[%clk 0:01:18]}  Rh2 {[%clk 0:00:15]} 39. Nf3+ {[%clk 0:01:17]}  Kf4 {[%clk 0:00:15]} 40. Nxh2 {[%clk 0:01:17]}  Kg3 {[%clk 0:00:15]} 41. Nf1+ {[%clk 0:01:17]}  Kxh3 {[%clk 0:00:15]} 42. Kxd4 {[%clk 0:01:17]}  Kh4 {[%clk 0:00:15]} 43. Ne3 {[%clk 0:01:15]}  h5 {[%clk 0:00:14]} 44. Ng2+ {[%clk 0:01:16]}  Kg3 {[%clk 0:00:10]} 45. gxh5 {[%clk 0:01:16]} 1-0


[Site "https://www.chess.com"]

[Event "Titled Tuesday Blitz August 15 Late 2023"]
[White "Kubatko, Ivan"]
[Black "Rodriguez Santiago, Jaime"]
[WhiteFideId "24111473"]
[BlackFideId "3100898"]
[WhiteElo "2436"]
[BlackElo "2273"]
[Result "1-0"]
[Round "3"]
[TimeControl "180+1"]
[Date "2023.08.15"]
[WhiteClock "0:00:50"]
[BlackClock "0:00:06"]
[Board "155"]

1. e4 {[%clk 0:02:57]}  c6 {[%clk 0:02:58]} 2. d4 {[%clk 0:02:54]}  d5 {[%clk 0:02:58]} 3. exd5 {[%clk 0:02:55]}  cxd5 {[%clk 0:02:57]} 4. c4 {[%clk 0:02:56]}  Nf6 {[%clk 0:02:52]} 5. Nc3 {[%clk 0:02:55]}  e6 {[%clk 0:02:49]} 6. Nf3 {[%clk 0:02:54]}  Be7 {[%clk 0:02:48]} 7. cxd5 {[%clk 0:02:53]}  Nxd5 {[%clk 0:02:46]} 8. Bd3 {[%clk 0:02:53]}  Nc6 {[%clk 0:02:44]} 9. O-O {[%clk 0:02:53]}  h6 {[%clk 0:02:41]} 10. Re1 {[%clk 0:02:52]}  O-O {[%clk 0:02:40]} 11. a3 {[%clk 0:02:48]}  b6 {[%clk 0:02:39]} 12. Qe2 {[%clk 0:02:27]}  Bb7 {[%clk 0:02:34]} 13. Qe4 {[%clk 0:02:27]}  Nf6 {[%clk 0:02:30]} 14. Qh4 {[%clk 0:02:26]}  Nd5 {[%clk 0:01:56]} 15. Qh3 {[%clk 0:02:21]}  Qd7 {[%clk 0:01:08]} 16. Bxh6 {[%clk 0:02:03]}  gxh6 {[%clk 0:00:59]} 17. Qxh6 {[%clk 0:02:04]}  f5 {[%clk 0:00:46]} 18. Nxd5 {[%clk 0:00:51]}  Qxd5 {[%clk 0:00:06]} 19. Rxe6 {[%clk 0:00:50]} 1-0


[Site "https://www.chess.com"]

[Event "Titled Tuesday Blitz August 15 Late 2023"]
[White "KrokerGuy"]
[Black "Martinez, Ayelen"]
[BlackFideId "118702"]
[WhiteElo "2429"]
[BlackElo "2250"]
[Result "1-0"]
[Round "3"]
[TimeControl "180+1"]
[Date "2023.08.15"]
[WhiteClock "0:00:27"]
[BlackClock "0:00:05"]
[Board "157"]

1. e4 {[%clk 0:03:00]}  c5 {[%clk 0:02:59]} 2. Nf3 {[%clk 0:03:01]}  d6 {[%clk 0:02:57]} 3. d4 {[%clk 0:03:02]}  cxd4 {[%clk 0:02:57]} 4. Nxd4 {[%clk 0:03:02]}  Nf6 {[%clk 0:02:54]} 5. Nc3 {[%clk 0:03:03]}  a6 {[%clk 0:02:55]} 6. Bg5 {[%clk 0:03:04]}  Nbd7 {[%clk 0:02:53]} 7. Qe2 {[%clk 0:03:03]}  Qc7 {[%clk 0:02:50]} 8. O-O-O {[%clk 0:03:00]}  h6 {[%clk 0:02:40]} 9. Bh4 {[%clk 0:02:57]}  b5 {[%clk 0:02:30]} 10. f4 {[%clk 0:02:54]}  Bb7 {[%clk 0:02:27]} 11. a3 {[%clk 0:02:54]}  Rc8 {[%clk 0:02:24]} 12. Kb1 {[%clk 0:02:52]}  e6 {[%clk 0:01:52]} 13. g4 {[%clk 0:02:52]}  Be7 {[%clk 0:01:42]} 14. Rg1 {[%clk 0:02:48]}  g5 {[%clk 0:01:13]} 15. fxg5 {[%clk 0:02:49]}  hxg5 {[%clk 0:01:13]} 16. Bxg5 {[%clk 0:02:48]}  Nxe4 {[%clk 0:01:02]} 17. Nxe4 {[%clk 0:02:41]}  Bxe4 {[%clk 0:01:03]} 18. Bxe7 {[%clk 0:02:39]}  d5 {[%clk 0:00:51]} 19. Bb4 {[%clk 0:01:33]}  Rxh2 {[%clk 0:00:49]} 20. Bg2 {[%clk 0:01:34]}  e5 {[%clk 0:00:45]} 21. Rh1 {[%clk 0:01:14]}  exd4 {[%clk 0:00:38]} 22. Bxe4 {[%clk 0:00:30]}  Rxe2 {[%clk 0:00:12]} 23. Rh8+ {[%clk 0:00:29]}  Nf8 {[%clk 0:00:12]} 24. Rxf8+ {[%clk 0:00:30]}  Kd7 {[%clk 0:00:13]} 25. Rxf7+ {[%clk 0:00:31]}  Kc6 {[%clk 0:00:11]} 26. Rxc7+ {[%clk 0:00:30]}  Rxc7 {[%clk 0:00:11]} 27. Bf5 {[%clk 0:00:30]}  Rf2 {[%clk 0:00:10]} 28. Rxd4 {[%clk 0:00:29]}  Re7 {[%clk 0:00:09]} 29. Bxe7 {[%clk 0:00:29]}  a5 {[%clk 0:00:08]} 30. Bd3 {[%clk 0:00:26]}  b4 {[%clk 0:00:07]} 31. axb4 {[%clk 0:00:26]}  axb4 {[%clk 0:00:05]} 32. Bxb4 {[%clk 0:00:27]} 1-0


[Site "https://www.chess.com"]

[Event "Titled Tuesday Blitz August 15 Late 2023"]
[White "Cooper, Aaron"]
[Black "Cooklev, Steven"]
[WhiteFideId "2634945"]
[BlackFideId "2050552"]
[WhiteElo "2245"]
[BlackElo "2419"]
[Result "0-1"]
[Round "3"]
[TimeControl "180+1"]
[Date "2023.08.15"]
[WhiteClock "0:00:26"]
[BlackClock "0:00:17"]
[Board "158"]

1. e4 {[%clk 0:03:00]}  c5 {[%clk 0:03:00]} 2. Nf3 {[%clk 0:03:00]}  Nc6 {[%clk 0:03:00]} 3. Bb5 {[%clk 0:03:00]}  Nf6 {[%clk 0:02:59]} 4. Nc3 {[%clk 0:02:57]}  Qc7 {[%clk 0:02:59]} 5. O-O {[%clk 0:02:53]}  Nd4 {[%clk 0:02:58]} 6. Bc4 {[%clk 0:02:48]}  e6 {[%clk 0:02:47]} 7. e5 {[%clk 0:02:43]}  Nxf3+ {[%clk 0:02:46]} 8. Qxf3 {[%clk 0:02:43]}  Qxe5 {[%clk 0:02:46]} 9. d3 {[%clk 0:02:37]}  a6 {[%clk 0:02:17]} 10. Bf4 {[%clk 0:02:34]}  Qh5 {[%clk 0:02:15]} 11. Qg3 {[%clk 0:02:22]}  d5 {[%clk 0:02:07]} 12. Bb3 {[%clk 0:02:20]}  Qg4 {[%clk 0:02:05]} 13. Rae1 {[%clk 0:02:13]}  Qxg3 {[%clk 0:02:03]} 14. Bxg3 {[%clk 0:02:08]}  Be7 {[%clk 0:02:01]} 15. f4 {[%clk 0:02:02]}  b5 {[%clk 0:01:46]} 16. a4 {[%clk 0:01:22]}  c4 {[%clk 0:01:34]} 17. Ba2 {[%clk 0:01:22]}  O-O {[%clk 0:01:18]} 18. f5 {[%clk 0:00:39]}  Bc5+ {[%clk 0:01:09]} 19. Kh1 {[%clk 0:00:39]}  b4 {[%clk 0:01:03]} 20. Ne2 {[%clk 0:00:38]}  exf5 {[%clk 0:01:02]} 21. dxc4 {[%clk 0:00:37]}  Be6 {[%clk 0:00:46]} 22. Nf4 {[%clk 0:00:35]}  Ne4 {[%clk 0:00:44]} 23. Nxe6 {[%clk 0:00:32]}  fxe6 {[%clk 0:00:42]} 24. cxd5 {[%clk 0:00:32]}  Nxg3+ {[%clk 0:00:30]} 25. hxg3 {[%clk 0:00:33]}  Rae8 {[%clk 0:00:18]} 26. dxe6 {[%clk 0:00:32]}  Rf6 {[%clk 0:00:17]} 27. Re5 {[%clk 0:00:26]}  Rh6# {[%clk 0:00:17]} 0-1


[Site "https://www.chess.com"]

[Event "Titled Tuesday Blitz August 15 Late 2023"]
[White "FuenfgegenWilly"]
[Black "tomobeast"]
[WhiteElo "2411"]
[BlackElo "2237"]
[Result "1-0"]
[Round "3"]
[TimeControl "180+1"]
[Date "2023.08.15"]
[WhiteClock "0:01:42"]
[BlackClock "0:00:59"]
[Board "160"]

1. e4 {[%clk 0:03:00]}  e5 {[%clk 0:02:57]} 2. Nc3 {[%clk 0:03:00]}  Nf6 {[%clk 0:02:56]} 3. f4 {[%clk 0:03:01]}  d5 {[%clk 0:02:55]} 4. fxe5 {[%clk 0:03:01]}  Nxe4 {[%clk 0:02:56]} 5. Nf3 {[%clk 0:03:02]}  Nc6 {[%clk 0:02:45]} 6. d3 {[%clk 0:03:01]}  Nxc3 {[%clk 0:02:42]} 7. bxc3 {[%clk 0:03:02]}  d4 {[%clk 0:02:40]} 8. Be2 {[%clk 0:03:02]}  Bc5 {[%clk 0:02:30]} 9. c4 {[%clk 0:02:59]}  Qe7 {[%clk 0:02:19]} 10. O-O {[%clk 0:02:58]}  Nxe5 {[%clk 0:02:18]} 11. Nxe5 {[%clk 0:02:58]}  Qxe5 {[%clk 0:02:19]} 12. Bf4 {[%clk 0:02:57]}  Qe7 {[%clk 0:02:15]} 13. Bf3 {[%clk 0:02:43]}  O-O {[%clk 0:02:13]} 14. Rb1 {[%clk 0:02:43]}  c6 {[%clk 0:02:12]} 15. Be4 {[%clk 0:02:38]}  Bd6 {[%clk 0:02:07]} 16. Bxd6 {[%clk 0:02:12]}  Qxd6 {[%clk 0:02:08]} 17. Qh5 {[%clk 0:02:11]}  g6 {[%clk 0:02:07]} 18. Qh6 {[%clk 0:02:11]}  Rb8 {[%clk 0:01:55]} 19. Rf4 {[%clk 0:02:04]}  Qc7 {[%clk 0:01:45]} 20. Rf6 {[%clk 0:01:58]}  Re8 {[%clk 0:01:29]} 21. Rbf1 {[%clk 0:01:56]}  Re6 {[%clk 0:01:00]} 22. Rxf7 {[%clk 0:01:45]}  Qxf7 {[%clk 0:01:01]} 23. Rxf7 {[%clk 0:01:46]}  Kxf7 {[%clk 0:01:01]} 24. Qf4+ {[%clk 0:01:46]}  Rf6 {[%clk 0:00:59]} 25. Qxb8 {[%clk 0:01:47]}  Bg4 {[%clk 0:01:00]} 26. Qxb7+ {[%clk 0:01:45]}  Kg8 {[%clk 0:01:00]} 27. h3 {[%clk 0:01:42]}  Be2 {[%clk 0:01:01]} 28. Bxc6 {[%clk 0:01:41]}  Rf1+ {[%clk 0:01:02]} 29. Kh2 {[%clk 0:01:41]}  Rc1 {[%clk 0:00:59]} 30. Bd5+ {[%clk 0:01:42]} 1-0


[Site "https://www.chess.com"]

[Event "Titled Tuesday Blitz August 15 Late 2023"]
[White "Alexikov, Alexander"]
[Black "Andrews, Todd"]
[WhiteFideId "14103958"]
[BlackFideId "2012456"]
[WhiteElo "2221"]
[BlackElo "2394"]
[Result "0-1"]
[Round "3"]
[TimeControl "180+1"]
[Date "2023.08.15"]
[WhiteClock "0:00:00"]
[BlackClock "0:00:44"]
[Board "163"]

1. e4 {[%clk 0:03:00]}  c5 {[%clk 0:02:59]} 2. Nf3 {[%clk 0:03:00]}  d6 {[%clk 0:02:59]} 3. d4 {[%clk 0:03:00]}  cxd4 {[%clk 0:03:00]} 4. Nxd4 {[%clk 0:02:59]}  Nf6 {[%clk 0:03:00]} 5. Nc3 {[%clk 0:02:58]}  a6 {[%clk 0:03:01]} 6. Be2 {[%clk 0:02:54]}  e5 {[%clk 0:02:59]} 7. Nb3 {[%clk 0:02:52]}  Be7 {[%clk 0:02:58]} 8. Be3 {[%clk 0:02:52]}  O-O {[%clk 0:02:58]} 9. g4 {[%clk 0:02:51]}  Be6 {[%clk 0:02:56]} 10. g5 {[%clk 0:02:50]}  Nfd7 {[%clk 0:02:55]} 11. h4 {[%clk 0:02:50]}  f5 {[%clk 0:02:54]} 12. exf5 {[%clk 0:02:40]}  Bxf5 {[%clk 0:02:37]} 13. Qd5+ {[%clk 0:02:38]}  Kh8 {[%clk 0:02:37]} 14. Qxb7 {[%clk 0:02:38]}  Nc6 {[%clk 0:02:21]} 15. Qxc6 {[%clk 0:02:35]}  Bxc2 {[%clk 0:02:21]} 16. Rc1 {[%clk 0:01:58]}  Bf5 {[%clk 0:02:15]} 17. Nd2 {[%clk 0:01:51]}  a5 {[%clk 0:02:11]} 18. Nd5 {[%clk 0:01:44]}  a4 {[%clk 0:02:04]} 19. Bb5 {[%clk 0:01:28]}  Be6 {[%clk 0:02:02]} 20. Nc7 {[%clk 0:01:18]}  Rc8 {[%clk 0:01:47]} 21. Nxe6 {[%clk 0:01:17]}  Rxc6 {[%clk 0:01:47]} 22. Bxc6 {[%clk 0:01:17]}  Qa5 {[%clk 0:01:35]} 23. Bxd7 {[%clk 0:01:10]}  Rb8 {[%clk 0:01:35]} 24. Rc2 {[%clk 0:01:07]}  d5 {[%clk 0:01:35]} 25. Bc5 {[%clk 0:00:58]}  Bxc5 {[%clk 0:01:29]} 26. Nxc5 {[%clk 0:00:57]}  a3 {[%clk 0:01:26]} 27. b3 {[%clk 0:00:56]}  g6 {[%clk 0:01:25]} 28. Rh3 {[%clk 0:00:54]}  e4 {[%clk 0:01:24]} 29. Be6 {[%clk 0:00:50]}  Qb4 {[%clk 0:01:22]} 30. Bxd5 {[%clk 0:00:44]}  Qd4 {[%clk 0:01:22]} 31. Bxe4 {[%clk 0:00:41]}  Re8 {[%clk 0:01:22]} 32. Re3 {[%clk 0:00:39]}  Rc8 {[%clk 0:01:18]} 33. Rec3 {[%clk 0:00:36]}  Rf8 {[%clk 0:01:12]} 34. Bf3 {[%clk 0:00:25]}  Qxh4 {[%clk 0:01:09]} 35. Nde4 {[%clk 0:00:22]}  Qh2 {[%clk 0:01:01]} 36. Ke2 {[%clk 0:00:21]}  Qg1 {[%clk 0:00:58]} 37. Rd3 {[%clk 0:00:21]}  Re8 {[%clk 0:00:56]} 38. Rcd2 {[%clk 0:00:20]}  Qxg5 {[%clk 0:00:56]} 39. Rd5 {[%clk 0:00:17]}  Qg1 {[%clk 0:00:54]} 40. Rd8 {[%clk 0:00:14]}  Rxd8 {[%clk 0:00:54]} 41. Rxd8+ {[%clk 0:00:13]}  Kg7 {[%clk 0:00:55]} 42. Rd7+ {[%clk 0:00:13]}  Kh6 {[%clk 0:00:55]} 43. Nd3 {[%clk 0:00:11]}  Qb1 {[%clk 0:00:52]} 44. Nd2 {[%clk 0:00:09]}  Qxa2 {[%clk 0:00:52]} 45. Bd5 {[%clk 0:00:08]}  Qc2 {[%clk 0:00:50]} 46. f4 {[%clk 0:00:07]}  a2 {[%clk 0:00:49]} 47. Bg8 {[%clk 0:00:06]}  Kh5 {[%clk 0:00:49]} 48. Rxh7+ {[%clk 0:00:05]}  Kg4 {[%clk 0:00:50]} 49. Rh1 {[%clk 0:00:03]}  Kf5 {[%clk 0:00:46]} 50. b4 {[%clk 0:00:00]}  Qc3 {[%clk 0:00:44]} 0-1


[Site "https://www.chess.com"]

[Event "Titled Tuesday Blitz August 15 Late 2023"]
[White "Osmonbekov, Talaibek"]
[Black "Melikhov, Evgeny V."]
[WhiteFideId "2017253"]
[BlackFideId "4122046"]
[WhiteElo "2199"]
[BlackElo "2393"]
[Result "0-1"]
[Round "3"]
[TimeControl "180+1"]
[Date "2023.08.15"]
[WhiteClock "0:00:00"]
[BlackClock "0:00:42"]
[Board "164"]

1. d4 {[%clk 0:03:00]}  Nf6 {[%clk 0:02:57]} 2. Nc3 {[%clk 0:03:01]}  d5 {[%clk 0:02:56]} 3. Bf4 {[%clk 0:03:01]}  c5 {[%clk 0:02:55]} 4. e3 {[%clk 0:03:02]}  cxd4 {[%clk 0:02:56]} 5. exd4 {[%clk 0:03:02]}  a6 {[%clk 0:02:56]} 6. Nf3 {[%clk 0:03:01]}  Nc6 {[%clk 0:02:56]} 7. Ne5 {[%clk 0:03:01]}  e6 {[%clk 0:02:52]} 8. Nxc6 {[%clk 0:02:48]}  bxc6 {[%clk 0:02:52]} 9. Bd3 {[%clk 0:02:49]}  c5 {[%clk 0:02:49]} 10. dxc5 {[%clk 0:02:45]}  Bxc5 {[%clk 0:02:49]} 11. O-O {[%clk 0:02:45]}  O-O {[%clk 0:02:46]} 12. Re1 {[%clk 0:02:40]}  Re8 {[%clk 0:02:40]} 13. Qf3 {[%clk 0:02:14]}  Bb7 {[%clk 0:02:26]} 14. Be5 {[%clk 0:02:03]}  Bd6 {[%clk 0:02:18]} 15. Rad1 {[%clk 0:01:20]}  Rc8 {[%clk 0:02:04]} 16. Qh3 {[%clk 0:00:53]}  Bxe5 {[%clk 0:01:45]} 17. Rxe5 {[%clk 0:00:53]}  g6 {[%clk 0:01:41]} 18. Ne2 {[%clk 0:00:28]}  Ne4 {[%clk 0:01:35]} 19. Bxe4 {[%clk 0:00:20]}  Qf6 {[%clk 0:01:34]} 20. Qg3 {[%clk 0:00:12]}  dxe4 {[%clk 0:01:32]} 21. c3 {[%clk 0:00:11]}  Rcd8 {[%clk 0:01:26]} 22. Nd4 {[%clk 0:00:11]}  Rd5 {[%clk 0:01:18]} 23. Rxd5 {[%clk 0:00:10]}  exd5 {[%clk 0:01:15]} 24. Qc7 {[%clk 0:00:10]}  Qe7 {[%clk 0:01:14]} 25. Qb6 {[%clk 0:00:09]}  Qd7 {[%clk 0:01:07]} 26. Re1 {[%clk 0:00:06]}  Kg7 {[%clk 0:01:01]} 27. h3 {[%clk 0:00:05]}  h5 {[%clk 0:00:55]} 28. a3 {[%clk 0:00:04]}  h4 {[%clk 0:00:55]} 29. Nc2 {[%clk 0:00:03]}  Re6 {[%clk 0:00:54]} 30. Qd4+ {[%clk 0:00:03]}  Kg8 {[%clk 0:00:53]} 31. Qe3 {[%clk 0:00:03]}  Qe7 {[%clk 0:00:52]} 32. Nd4 {[%clk 0:00:03]}  Rd6 {[%clk 0:00:48]} 33. Qh6 {[%clk 0:00:03]}  Qf6 {[%clk 0:00:46]} 34. Re3 {[%clk 0:00:00]}  Bc8 {[%clk 0:00:42]} 0-1


[Site "https://www.chess.com"]

[Event "Titled Tuesday Blitz August 15 Late 2023"]
[White "sebastianmarinp"]
[Black "KSho99"]
[WhiteElo "2393"]
[BlackElo "2218"]
[Result "1-0"]
[Round "3"]
[TimeControl "180+1"]
[Date "2023.08.15"]
[WhiteClock "0:00:58"]
[BlackClock "0:00:05"]
[Board "165"]

1. e4 {[%clk 0:03:00]}  e6 {[%clk 0:03:00]} 2. d4 {[%clk 0:02:59]}  d5 {[%clk 0:03:00]} 3. Nc3 {[%clk 0:03:00]}  Be7 {[%clk 0:02:59]} 4. Nf3 {[%clk 0:02:53]}  Nf6 {[%clk 0:02:58]} 5. e5 {[%clk 0:02:51]}  Nfd7 {[%clk 0:02:58]} 6. Ne2 {[%clk 0:02:50]}  c5 {[%clk 0:02:55]} 7. c3 {[%clk 0:02:50]}  Nc6 {[%clk 0:02:52]} 8. Be3 {[%clk 0:02:45]}  O-O {[%clk 0:02:38]} 9. Ng3 {[%clk 0:02:33]}  cxd4 {[%clk 0:02:14]} 10. cxd4 {[%clk 0:02:34]}  f6 {[%clk 0:01:54]} 11. exf6 {[%clk 0:02:26]}  Nxf6 {[%clk 0:01:47]} 12. Bd3 {[%clk 0:02:18]}  Qa5+ {[%clk 0:01:28]} 13. Bd2 {[%clk 0:02:16]}  Qb6 {[%clk 0:01:28]} 14. Bc3 {[%clk 0:02:09]}  Nb4 {[%clk 0:01:22]} 15. Bb1 {[%clk 0:02:06]}  Qa6 {[%clk 0:01:04]} 16. a3 {[%clk 0:01:58]}  Kh8 {[%clk 0:00:49]} 17. Qd2 {[%clk 0:01:44]}  Nc6 {[%clk 0:00:40]} 18. Bd3 {[%clk 0:01:44]}  Qb6 {[%clk 0:00:40]} 19. O-O {[%clk 0:01:43]}  Bd7 {[%clk 0:00:39]} 20. b4 {[%clk 0:01:35]}  Bd6 {[%clk 0:00:26]} 21. b5 {[%clk 0:01:16]}  Ne7 {[%clk 0:00:25]} 22. Ba5 {[%clk 0:01:13]}  Bf4 {[%clk 0:00:17]} 23. Qe1 {[%clk 0:01:03]}  Qd6 {[%clk 0:00:16]} 24. Bb4 {[%clk 0:01:03]}  Bxg3 {[%clk 0:00:05]} 25. hxg3 {[%clk 0:00:58]} 1-0


[Site "https://www.chess.com"]

[Event "Titled Tuesday Blitz August 15 Late 2023"]
[White "chessmateto"]
[Black "Cueto, Jonny"]
[BlackFideId "3300145"]
[WhiteElo "2389"]
[BlackElo "2171"]
[Result "1-0"]
[Round "3"]
[TimeControl "180+1"]
[Date "2023.08.15"]
[WhiteClock "0:02:18"]
[BlackClock "0:01:46"]
[Board "167"]

1. c4 {[%clk 0:03:00]}  e6 {[%clk 0:03:00]} 2. Nc3 {[%clk 0:03:00]}  Nf6 {[%clk 0:03:00]} 3. d4 {[%clk 0:02:59]}  Bb4 {[%clk 0:02:58]} 4. Qc2 {[%clk 0:02:57]}  d5 {[%clk 0:02:51]} 5. Bg5 {[%clk 0:02:49]}  h6 {[%clk 0:02:49]} 6. Bxf6 {[%clk 0:02:47]}  Qxf6 {[%clk 0:02:49]} 7. e3 {[%clk 0:02:47]}  O-O {[%clk 0:02:48]} 8. Nf3 {[%clk 0:02:45]}  b6 {[%clk 0:02:49]} 9. a3 {[%clk 0:02:44]}  Bd6 {[%clk 0:02:48]} 10. b4 {[%clk 0:02:39]}  dxc4 {[%clk 0:02:40]} 11. Bxc4 {[%clk 0:02:37]}  e5 {[%clk 0:02:38]} 12. Ne4 {[%clk 0:02:22]}  Qg6 {[%clk 0:02:35]} 13. dxe5 {[%clk 0:02:18]}  Qxg2 {[%clk 0:02:16]} 14. Rg1 {[%clk 0:02:18]}  Qxf3 {[%clk 0:01:46]} 15. Nf6+ {[%clk 0:02:18]} 1-0


[Site "https://www.chess.com"]